fUSD/lending_fUSD_20260108
["ID","MTS","AMOUNT","RATE_DAILY","PERIOD"]
[401011693,1767887443021,-516.18277591,0.00014762,2]
[401011694,1767887443034,-500.0,0.00014763,2]
[401011695,1767887443044,-500.0,0.00014763,2]
[401011696,1767887443054,-501.08291115,0.00014763,2]
[401011697,1767887443064,-500.0,0.00014763,2]
[401011698,1767887443074,-519.74194078,0.00014763,2]
[401011699,1767887443084,-500.0,0.00014763,2]
[401011700,1767887443093,-501.54454633,0.00014763,2]
[401011701,1767887443104,-500.0,0.00014763,2]
[401011702,1767887443116,-225.04435093,0.00014763,2]
[401011703,1767887443126,-500.0,0.00014763,2]
[401011704,1767887443137,-500.0,0.00014763,2]
[401011705,1767887443146,-500.0,0.00014763,2]
[401011706,1767887443156,-500.0,0.00014763,2]
[401011708,1767887443165,-500.0,0.00014763,2]
[401011710,1767887443174,-500.0,0.00014763,2]
[401011712,1767887443184,-500.51555347,0.00014763,2]
[401011714,1767887443193,-500.0,0.00014763,2]
[401011715,1767887443203,-500.0,0.00014763,2]
[401011717,1767887443212,-747.97129739,0.00014792,2]
[401011720,1767887443224,-214.12448155,0.00015068,2]
[401011722,1767887443239,-1000.0,0.0001531,2]
[401011724,1767887443249,-799.73155764,0.0001531,2]
[401011726,1767887443258,-633.20600999,0.0001531,2]
[401011727,1767887443267,-879.40330386,0.0001531,2]
[401011729,1767887443276,-1000.0,0.0001531,2]
[401011731,1767887443286,-1000.0,0.0001531,2]
[401011733,1767887443296,-301.12121913,0.00015519,2]
[401011735,1767887443306,-3362.12953677,0.00015519,2]
[401011738,1767887443316,-12406.01744599,0.00015519,2]
[401011740,1767887443326,-152.0,0.00015572,3]
[401011741,1767887443335,-1716.59998856,0.0001564,2]
[401011743,1767887443345,-1252.0,0.00015642,2]
[401011745,1767887443354,-1152.0,0.00015679,2]
[401011747,1767887443364,-4609.0,0.00015726,2]
[401011749,1767887443373,-152.0,0.00015809,4]
[401011751,1767887443383,-747.97129739,0.00015828,2]
[401011753,1767887443392,-157.72323008,0.0001584,2]
[401011755,1767887443401,-1500.0,0.00015858,2]
[401011757,1767887443411,-1500.0,0.00015858,2]
[401011759,1767887443421,-1500.0,0.00015858,2]
[401011761,1767887443430,-160.52,0.00015908,2]
[401011763,1767887443440,-207.87,0.00015997,2]
[401011765,1767887443449,-500.0,0.00015999,2]
[401011767,1767887443459,-418.69539905,0.00015999,2]
[401011769,1767887443469,-500.0,0.00015999,2]
[401011771,1767887443479,-152.0,0.00016046,5]
[401011773,1767887443491,-500.0,0.00016099,2]
[401011775,1767887443500,-386.45682453,0.00016099,2]
[401011777,1767887443510,-500.0,0.00016099,2]
[401011779,1767887443520,-500.0,0.00016099,2]
[401011781,1767887443530,-9999.99,0.00016116,2]
[401011783,1767887443539,-180.0,0.00016128,2]
[401011785,1767887443548,-152.0,0.00016283,6]
[401011787,1767887443558,-3362.12953677,0.00016312,2]
[401011789,1767887443567,-12406.01744599,0.00016312,2]
[401011791,1767887443577,-150.0,0.00016356,2]
[401011793,1767887443586,-151.0,0.00016403,2]
[401011795,1767887443595,-2000.0,0.00016406,2]
[401011797,1767887443605,-1699.80942896,0.00016406,2]
[401011799,1767887443615,-2000.0,0.00016406,2]
[401011801,1767887443624,-500.0,0.00016438,2]
[401011803,1767887443634,-500.0,0.00016438,2]
[401011805,1767887443643,-500.0,0.00016438,2]
[401011807,1767887443652,-500.0,0.00016438,2]
[401011809,1767887443662,-500.0,0.00016438,2]
[401011811,1767887443671,-500.0,0.00016438,2]
[401011813,1767887443681,-500.0,0.00016438,2]
[401011815,1767887443691,-500.0,0.00016438,2]
[401011817,1767887443700,-500.0,0.00016438,2]
[401011820,1767887443718,-500.0,0.00016438,2]
[401011822,1767887443730,-500.0,0.00016438,2]
[401011824,1767887443742,-500.0,0.00016438,2]
[401011826,1767887443752,-500.0,0.00016438,2]
[401011828,1767887443762,-500.0,0.00016438,2]
[401011830,1767887443771,-500.0,0.00016438,2]
[401011832,1767887443781,-150.49333167,0.00016438,2]
[401011834,1767887443790,-1769.1,0.0001647,2]
[401011836,1767887443800,-152.0,0.0001652,7]
[401011839,1767887443810,-1405.0,0.00016542,2]
[401011840,1767887443820,-3467.0,0.00016542,2]
[401011843,1767887443830,-1330.0,0.00016542,2]
[401011845,1767887443839,-614.0,0.00016542,2]
[401011847,1767887443850,-505.0,0.00016542,2]
[401011849,1767887443859,-1266.0,0.00016542,2]
[401011851,1767887443868,-1204.815,0.00016542,2]
[401011853,1767887443879,-6552.0,0.00016542,2]
[401011855,1767887443889,-150.0,0.00016542,2]
[401011857,1767887443898,-4819.0,0.00016542,2]
[401011859,1767887443908,-157.72323008,0.0001656,2]
[401011861,1767887443918,-272.405,0.00016571,2]
[401011863,1767887443927,-3417.6,0.000167,2]
[401011865,1767887443937,-301.12121913,0.00016709,2]
[401011867,1767887443946,-152.0,0.00016757,8]
[401011869,1767887443956,-207.87,0.00016797,2]
[401011871,1767887443965,-1357.0,0.000168,2]
[401011873,1767887443976,-3417.6,0.00016818,2]
[401011875,1767887443987,-747.97129739,0.00016864,2]
[401011877,1767887443996,-3417.6,0.00016936,2]
[401011879,1767887444005,-193.73266833,0.00016954,2]
[401011881,1767887444015,-2500.0,0.00016954,2]
[401011883,1767887444024,-500.0,0.00016985,2]
[401011885,1767887444036,-500.0,0.00016986,2]
[401011887,1767887444046,-500.0,0.00016986,2]
[401011889,1767887444055,-152.0,0.00016994,9]
[401011891,1767887444065,-250.0,0.00017,2]
[401011893,1767887444076,-4000.0,0.00017,2]
[401011895,1767887444085,-3417.6,0.00017055,2]
[401011896,1767887444095,-150.0,0.00017078,2]
[401011899,1767887444106,-300.0,0.00017099,2]
[401011901,1767887444115,-322.6107,0.00017099,2]
[401011903,1767887444125,-151.0,0.00017099,2]
[401011905,1767887444135,-250.0,0.00017099,2]
[401011906,1767887444144,-721.12765535,0.00017099,2]
[401011909,1767887444154,-250.0,0.00017099,2]
[401011911,1767887444163,-574.12855637,0.00017099,2]
[401011913,1767887444172,-250.0,0.00017099,2]
[401011915,1767887444182,-1500.0,0.00017099,2]
[401011917,1767887444192,-250.0,0.00017099,2]
[401011919,1767887444201,-1500.0,0.00017099,2]
[401011921,1767887444211,-151.0,0.00017099,2]
[401011923,1767887444220,-245.3952879,0.00017099,2]
[401011925,1767887444229,-1500.0,0.00017099,2]
[401011927,1767887444242,-162.7023203,0.00017099,2]
[401011929,1767887444251,-1500.0,0.00017099,2]
[401011931,1767887444261,-1500.0,0.00017099,2]
[401011933,1767887444271,-1500.0,0.00017099,2]
[401011935,1767887444285,-988.0,0.00017099,2]
[401011937,1767887444295,-1500.0,0.00017099,2]
[401011939,1767887444305,-1500.0,0.00017099,2]
[401011941,1767887444315,-1500.0,0.00017099,2]
[401011943,1767887444324,-1500.0,0.00017099,2]
[401011945,1767887444334,-250.0,0.00017099,2]
[401011947,1767887444343,-250.0,0.00017099,2]
[401011949,1767887444353,-1500.0,0.00017099,2]
[401011951,1767887444362,-250.0,0.00017099,2]
[401011953,1767887444371,-500.0,0.00017099,2]
[401011955,1767887444381,-250.0,0.00017099,2]
[401011958,1767887444391,-151.0,0.00017099,2]
[401011960,1767887444401,-500.0,0.00017099,2]
[401011962,1767887444410,-250.0,0.00017099,2]
[401011964,1767887444420,-500.0,0.00017099,2]
[401011966,1767887444429,-250.0,0.00017099,2]
[401011968,1767887444439,-500.0,0.00017099,2]
[401011970,1767887444448,-500.0,0.00017099,2]
[401011972,1767887444457,-250.0,0.00017099,2]
[401011974,1767887444468,-500.0,0.00017099,2]
[401011976,1767887444479,-500.0,0.00017099,2]
[401011978,1767887444489,-250.0,0.00017099,2]
[401011980,1767887444499,-500.0,0.00017099,2]
[401011982,1767887444509,-500.0,0.00017099,2]
[401011984,1767887444518,-500.0,0.00017099,2]
[401011986,1767887444528,-500.0,0.00017099,2]
[401011988,1767887444537,-250.0,0.00017099,2]
[401011990,1767887444547,-500.0,0.00017099,2]
[401011992,1767887444557,-500.0,0.00017099,2]
[401011994,1767887444567,-500.0,0.00017099,2]
[401011996,1767887444576,-500.0,0.00017099,2]
[401011998,1767887444586,-250.0,0.00017099,2]
[401012000,1767887444595,-500.0,0.00017099,2]
[401012002,1767887444605,-500.0,0.00017099,2]
[401012004,1767887444615,-500.0,0.00017099,2]
[401012006,1767887444625,-260.34840278,0.00017099,2]
[401012008,1767887444634,-250.0,0.00017099,2]
[401012010,1767887444644,-500.0,0.00017099,2]
[401012012,1767887444654,-500.0,0.00017099,2]
[401012015,1767887444668,-500.0,0.00017099,2]
[401012017,1767887444678,-500.0,0.00017099,2]
[401012019,1767887444688,-500.0,0.00017099,2]
[401012021,1767887444698,-500.0,0.00017099,2]
[401012023,1767887444708,-500.0,0.00017099,2]
[401012025,1767887444718,-1316.20759869,0.00017099,2]
[401012027,1767887444727,-500.0,0.00017099,2]
[401012029,1767887444738,-500.0,0.00017099,2]
[401012031,1767887444748,-500.0,0.00017099,2]
[401012033,1767887444757,-500.0,0.00017099,2]
[401012035,1767887444767,-500.0,0.00017099,2]
[401012037,1767887444776,-500.0,0.00017099,2]
[401012039,1767887444786,-500.0,0.00017099,2]
[401012041,1767887444796,-500.0,0.00017099,2]
[401012043,1767887444805,-500.0,0.00017099,2]
[401012045,1767887444815,-500.0,0.00017099,2]
[401012047,1767887444824,-500.0,0.00017099,2]
[401012049,1767887444834,-500.0,0.00017099,2]
[401012051,1767887444843,-500.0,0.00017099,2]
[401012053,1767887444852,-620.0,0.00017099,2]
[401012055,1767887444862,-500.0,0.00017099,2]
[401012057,1767887444871,-500.0,0.00017099,2]
[401012059,1767887444881,-500.0,0.00017099,2]
[401012061,1767887444890,-500.0,0.00017099,2]
[401012063,1767887444901,-500.0,0.00017099,2]
[401012066,1767887444911,-500.0,0.00017099,2]
[401012068,1767887444920,-500.0,0.00017099,2]
[401012070,1767887444930,-500.0,0.00017099,2]
[401012072,1767887444939,-500.0,0.00017099,2]
[401012074,1767887444949,-500.0,0.00017099,2]
[401012076,1767887444958,-500.0,0.00017099,2]
[401012078,1767887444968,-500.0,0.00017099,2]
[401012080,1767887444977,-500.0,0.00017099,2]
[401012082,1767887444988,-500.0,0.00017099,2]
[401012084,1767887444998,-151.0,0.00017099,2]
[401012086,1767887445007,-2000.0,0.00017099,2]
[401012088,1767887445017,-578.20924308,0.00017099,2]
[401012090,1767887445027,-2000.0,0.00017099,2]
[401012092,1767887445040,-2000.0,0.00017099,2]
[401012095,1767887445053,-2000.0,0.00017099,2]
[401012097,1767887445062,-2000.0,0.00017099,2]
[401012099,1767887445072,-1500.0,0.00017099,2]
[401012101,1767887445083,-500.0,0.00017106,2]
[401012103,1767887445092,-500.0,0.00017106,2]
[401012105,1767887445103,-3362.12953677,0.00017106,2]
[401012107,1767887445113,-12406.01744599,0.00017106,2]
[401012109,1767887445123,-2129.0,0.00017138,2]
[401012111,1767887445132,-3417.6,0.00017173,2]
[401012113,1767887445148,-200.0,0.00017174,2]
[401012115,1767887445158,-150.0,0.00017178,2]
[401012117,1767887445167,-301.04,0.00017178,2]
[401012119,1767887445178,-152.0,0.00017231,10]
[401012121,1767887445188,-1613.0,0.00017234,2]
[401012124,1767887445197,-157.72323008,0.0001728,2]
[401012126,1767887445207,-3417.6,0.00017291,2]
[401012128,1767887445216,-6453.0,0.00017298,2]
[401012130,1767887445226,-3417.6,0.00017409,2]
[401012132,1767887445236,-152.0,0.00017468,11]
[401012134,1767887445245,-500.0,0.00017475,2]
[401012136,1767887445255,-2000.0,0.000175,2]
[401012138,1767887445264,-3000.0,0.00017502,2]
[401012140,1767887445274,-3417.6,0.00017527,2]
[401012142,1767887445284,-207.87,0.00017597,2]
[401012144,1767887445293,-150.0,0.00017616,2]
[401012146,1767887445303,-150.0,0.00017616,2]
[401012148,1767887445313,-500.0,0.00017616,2]
[401012150,1767887445323,-150.0,0.00017616,2]
[401012152,1767887445333,-159.6010049,0.00017616,2]
[401012155,1767887445342,-150.0,0.00017616,2]
[401012158,1767887445351,-150.0,0.00017616,2]
[401012160,1767887445361,-150.0,0.00017616,2]
[401012163,1767887445370,-150.0,0.00017616,2]
[401012166,1767887445379,-500.0,0.00017616,2]
[401012169,1767887445389,-500.0,0.00017616,2]
[401012172,1767887445399,-500.0,0.00017639,2]
[401012175,1767887445408,-500.0,0.00017639,2]
[401012178,1767887445418,-7551.57044864,0.0001764,2]
[401012180,1767887445427,-3417.6,0.00017645,2]
[401012183,1767887445438,-311.1,0.00017647,2]
[401012185,1767887445451,-151.0,0.00017647,2]
[401012187,1767887445460,-595.37131296,0.00017647,2]
[401012189,1767887445470,-151.0,0.00017647,2]
[401012191,1767887445481,-150.0,0.00017671,2]
[401012193,1767887445492,-500.0,0.00017671,2]
[401012195,1767887445501,-150.0,0.00017671,2]
[401012197,1767887445511,-150.0,0.00017671,2]
[401012198,1767887445520,-150.0,0.00017671,2]
[401012199,1767887445530,-150.0,0.00017671,2]
[401012200,1767887445540,-150.0,0.00017671,2]
[401012201,1767887445550,-500.0,0.00017671,2]
[401012202,1767887445559,-500.0,0.00017671,2]
[401012204,1767887445569,-1000.0,0.000177,2]
[401012206,1767887445579,-152.0,0.00017705,12]
[401012209,1767887445589,-168.0,0.00017709,2]
[401012211,1767887445599,-200.0,0.00017726,2]
[401012213,1767887445608,-500.0,0.00017726,2]
[401012215,1767887445618,-150.0,0.00017726,2]
[401012217,1767887445627,-150.0,0.00017726,2]
[401012219,1767887445637,-150.0,0.00017726,2]
[401012221,1767887445647,-150.0,0.00017726,2]
[401012223,1767887445656,-150.0,0.00017726,2]
[401012225,1767887445665,-500.0,0.00017726,2]
[401012227,1767887445675,-500.0,0.00017726,2]
[401012229,1767887445684,-25000.0,0.0001775,3]
[401012231,1767887445694,-25000.0,0.00017759,3]
[401012233,1767887445703,-3417.6,0.00017764,2]
[401012235,1767887445712,-25000.0,0.00017768,3]
[401012237,1767887445722,-25000.0,0.00017777,3]
[401012239,1767887445731,-500.0,0.0001778,2]
[401012241,1767887445743,-157.21654538,0.0001778,2]
[401012243,1767887445753,-161.35165335,0.0001778,2]
[401012245,1767887445763,-150.0,0.0001778,2]
[401012247,1767887445772,-217.19962447,0.0001778,2]
[401012250,1767887445782,-500.0,0.0001778,2]
[401012252,1767887445791,-455.28552746,0.0001778,2]
[401012254,1767887445801,-25000.0,0.00017786,3]
[401012256,1767887445810,-693.3407598,0.0001779,2]
[401012258,1767887445820,-25000.0,0.00017794,3]
[401012260,1767887445832,-5995.58311418,0.000178,2]
[401012262,1767887445841,-25000.0,0.00017803,3]
[401012264,1767887445851,-25000.0,0.00017812,3]
[401012266,1767887445860,-1367.29259,0.0001782,2]
[401012268,1767887445870,-402.14488,0.0001782,2]
[401012270,1767887445879,-1367.2926,0.0001782,2]
[401012272,1767887445889,-402.14488,0.0001782,2]
[401012274,1767887445898,-402.14488,0.0001782,2]
[401012276,1767887445907,-402.14489,0.0001782,2]
[401012278,1767887445918,-500.0,0.0001782,2]
[401012280,1767887445927,-25000.0,0.00017821,3]
[401012282,1767887445937,-25000.0,0.0001783,3]
[401012284,1767887445946,-1047.53522858,0.0001783,2]
[401012286,1767887445956,-189.05,0.00017835,2]
[401012288,1767887445965,-521.27,0.00017835,2]
[401012290,1767887445974,-157.03274317,0.00017835,2]
[401012293,1767887445984,-171.05172936,0.00017835,2]
[401012295,1767887445994,-25000.0,0.00017838,3]
[401012297,1767887446003,-693.34075979,0.00017845,2]
[401012299,1767887446013,-25000.0,0.00017847,3]
[401012301,1767887446022,-2000.0,0.00017855,2]
[401012303,1767887446032,-200.0,0.00017855,2]
[401012305,1767887446043,-200.0,0.00017856,2]
[401012307,1767887446053,-2000.0,0.00017856,2]
[401012309,1767887446063,-200.0,0.00017856,2]
[401012311,1767887446073,-200.0,0.00017856,2]
[401012313,1767887446083,-25000.0,0.00017856,3]
[401012315,1767887446092,-1959.575,0.00017856,2]
[401012317,1767887446102,-672.0,0.00017856,2]
[401012319,1767887446111,-466.71,0.00017859,2]
[401012321,1767887446120,-358.03,0.00017859,2]
[401012323,1767887446129,-7567.0,0.00017863,2]
[401012325,1767887446138,-356.0,0.00017863,2]
[401012327,1767887446147,-25000.0,0.00017865,3]
[401012329,1767887446157,-25000.0,0.00017874,3]
[401012331,1767887446166,-1367.2926,0.0001788,2]
[401012333,1767887446175,-150.0,0.0001788,2]
[401012335,1767887446185,-10000.0,0.00017882,2]
[401012337,1767887446194,-3417.6,0.00017882,2]
[401012339,1767887446203,-25000.0,0.00017882,3]
[401012341,1767887446215,-500.0,0.0001789,2]
[401012343,1767887446225,-25000.0,0.00017891,3]
[401012345,1767887446236,-446.86331983,0.00017899,2]
[401012347,1767887446245,-500.0,0.00017899,2]
[401012349,1767887446255,-1000.0,0.000179,2]
[401012351,1767887446265,-24160.91442312,0.000179,3]
[401012353,1767887446274,-301.12121913,0.000179,2]
[401012355,1767887446283,-25000.0,0.000179,3]
[401012358,1767887446293,-3362.12953677,0.000179,2]
[401012360,1767887446302,-693.34075979,0.000179,2]
[401012362,1767887446312,-12406.01744599,0.000179,2]
[401012364,1767887446321,-190.04272048,0.000179,3]
[401012366,1767887446331,-423.76529882,0.000179,2]
[401012368,1767887446341,-747.97129739,0.000179,2]
[401012370,1767887446350,-1383.62695824,0.000179,2]
[401012372,1767887446360,-15991.0,0.000179,2]
[401012374,1767887446369,-1367.2926,0.0001791,2]
[401012376,1767887446379,-152.0,0.00017942,13]
[401012378,1767887446388,-563.0,0.00017945,2]
[401012380,1767887446398,-1000.0,0.0001797,2]
[401012382,1767887446407,-1000.0,0.0001797,2]
[401012384,1767887446417,-1000.0,0.0001797,2]
[401012386,1767887446428,-500.0,0.0001797,2]
[401012388,1767887446437,-500.0,0.0001797,2]
[401012390,1767887446446,-1000.0,0.0001797,2]
[401012392,1767887446456,-500.0,0.0001797,2]
[401012394,1767887446466,-1000.0,0.0001797,2]
[401012396,1767887446475,-500.0,0.0001797,2]
[401012398,1767887446487,-1000.0,0.0001797,2]
[401012400,1767887446497,-500.0,0.0001797,2]
[401012402,1767887446507,-1000.0,0.0001797,2]
[401012404,1767887446516,-500.0,0.0001797,2]
[401012406,1767887446526,-1000.0,0.0001797,2]
[401012408,1767887446536,-584.41347442,0.0001797,2]
[401012410,1767887446545,-1446.54474908,0.0001797,2]
[401012412,1767887446555,-8200.0,0.00017973,2]
[401012415,1767887446565,-150.0,0.00017973,2]
[401012417,1767887446575,-426.73386812,0.00017973,2]
[401012419,1767887446584,-500.0,0.00017973,2]
[401012421,1767887446594,-500.0,0.00017973,2]
[401012423,1767887446603,-500.0,0.00017973,2]
[401012425,1767887446613,-159.904,0.00017973,2]
[401012427,1767887446623,-160.89060159,0.00017973,2]
[401012429,1767887446632,-500.0,0.00017973,2]
[401012431,1767887446642,-500.0,0.00017973,2]
[401012433,1767887446652,-150.49880534,0.00017973,2]
[401012435,1767887446662,-500.0,0.00017973,2]
[401012437,1767887446671,-500.0,0.00017973,2]
[401012439,1767887446681,-500.17178809,0.00017973,2]
[401012441,1767887446690,-500.0,0.00017973,2]
[401012443,1767887446700,-500.0,0.00017973,2]
[401012445,1767887446710,-500.0,0.00017973,2]
[401012483,1767887447044,-500.0,0.00017973,2]
[401012485,1767887447054,-500.0,0.00017973,2]
[401012487,1767887447063,-500.0,0.00017973,2]
[401012489,1767887447074,-500.0,0.00017973,2]
[401012491,1767887447084,-501.18870733,0.00017973,2]
[401012492,1767887447095,-500.0,0.00017973,2]
[401012494,1767887447104,-385.16009683,0.00017973,2]
[401012496,1767887447114,-338.62982115,0.00017973,2]
[401012498,1767887447123,-500.0,0.00017973,2]
[401012500,1767887447133,-500.0,0.00017982,2]
[401012502,1767887447143,-246.66180949,0.0001799,2]
[401012504,1767887447153,-246.66180949,0.0001799,2]
[401012506,1767887447162,-596.87027646,0.00017993,2]
[401012509,1767887447172,-500.0,0.00017996,2]
[401012510,1767887447181,-500.0,0.00017996,2]
[401012513,1767887447192,-500.0,0.00017996,2]
[401012514,1767887447201,-3421.9101777,0.00017997,2]
[401012516,1767887447211,-58819.9378684,0.00017997,2]
[401012518,1767887447220,-65812.5396038,0.00017997,2]
[401012521,1767887447230,-110647.2740015,0.00017997,2]
[401012522,1767887447240,-151.0,0.00017997,2]
[401012524,1767887447250,-164.4226828,0.00017999,2]
[401012526,1767887447259,-150.0,0.00017999,2]
[401012528,1767887447271,-439.78730998,0.00017999,2]
[401012530,1767887447280,-300.0,0.00017999,2]
[401012532,1767887447289,-300.0,0.00017999,2]
[401012534,1767887447299,-172.70579065,0.00017999,2]
[401012536,1767887447309,-500.0,0.00017999,2]
[401012538,1767887447319,-500.0,0.00017999,2]
[401012540,1767887447329,-500.0,0.00017999,2]
[401012543,1767887447338,-500.0,0.00017999,2]
[401012544,1767887447347,-500.0,0.00017999,2]
[401012547,1767887447358,-500.0,0.00017999,2]
[401012549,1767887447367,-500.0,0.00017999,2]
[401012551,1767887447376,-500.0,0.00017999,2]
[401012552,1767887447386,-500.0,0.00017999,2]
[401012554,1767887447396,-500.0,0.00017999,2]
[401012557,1767887447405,-500.0,0.00017999,2]
[401012558,1767887447415,-375.2,0.00017999,2]
[401012560,1767887447424,-500.0,0.00017999,2]
[401012562,1767887447434,-577.20489565,0.00017999,2]
[401012564,1767887447443,-300.0,0.00017999,2]
[401012566,1767887447453,-666.0,0.00017999,2]
[401012568,1767887447463,-300.0,0.00017999,2]
[401012571,1767887447474,-666.0,0.00017999,2]
[401012573,1767887447484,-500.0,0.00017999,2]
[401012574,1767887447493,-500.0,0.00017999,2]
[401012576,1767887447503,-500.0,0.00017999,2]
[401012578,1767887447512,-500.0,0.00017999,2]
[401012580,1767887447522,-500.0,0.00017999,2]
[401012582,1767887447531,-500.0,0.00017999,2]
[401012585,1767887447541,-500.0,0.00017999,2]
[401012586,1767887447550,-500.0,0.00017999,2]
[401012588,1767887447560,-500.0,0.00017999,2]
[401012591,1767887447570,-500.0,0.00017999,2]
[401012592,1767887447579,-500.0,0.00017999,2]
[401012594,1767887447589,-500.0,0.00017999,2]
[401012596,1767887447599,-500.0,0.00017999,2]
[401012598,1767887447609,-550.68929532,0.00017999,2]
[401012600,1767887447619,-300.0,0.00017999,2]
[401012602,1767887447629,-300.0,0.00017999,2]
[401012604,1767887447639,-666.0,0.00017999,2]
[401012606,1767887447648,-5970.77362135,0.00017999,2]
[401012608,1767887447658,-157.72323008,0.00018,2]
[401012610,1767887447667,-6086.86666297,0.00018,2]
[401012612,1767887447677,-4601231.27256512,0.00018,2]
[401012694,1767887448429,152.146269,0.00010649,2]
[401012766,1767887449256,-150.0,0.00012793,2]
[401012768,1767887449265,-109.19169647,0.00012848,2]
[401012770,1767887449277,-40.80830353,0.00012848,2]
[401012772,1767887449286,-150.0,0.00012903,2]
[401012774,1767887449296,-617.93705807,0.00012933,2]
[401012776,1767887449305,-295.04207158,0.00012957,2]
[401012778,1767887449314,-1389.31256682,0.00016542,2]
[401012780,1767887449325,-649.83334176,0.00016542,2]
[401012818,1767887449664,-396.85409142,0.00016542,2]
[401012820,1767887449675,-1514.05636603,0.000179,2]
[401012822,1767887449685,-41554.08954255,0.00018,2]
[401012824,1767887449696,-275.38922162,0.00018,2]
[401012826,1767887449706,-262260.40472266,0.00018,2]
[401012832,1767887449757,-713.13,0.00018,2]
[401012834,1767887449767,-5758.36176899,0.00018,2]
[401012843,1767887449837,-490.0,0.00018,2]
[401012845,1767887449847,-403.92,0.00018,2]
[401012852,1767887449902,-409422.11345116,0.00018,2]
[401012854,1767887449912,-6019.73832867,0.00018,2]
[401012859,1767887449950,-3065.82931984,0.00018,2]
[401012863,1767887449981,-58712.74409333,0.00018,2]
[401012866,1767887450000,-888.0,0.00018,2]
[401012868,1767887450012,-4981.88487316,0.00018,2]
[401012871,1767887450026,-2954.93571423,0.00018,2]
[401012873,1767887450042,-3495.83514778,0.00018,2]
[401012876,1767887450053,-21081.93965176,0.00018,2]
[401012879,1767887450071,-57039.59347837,0.00018,2]
[401012881,1767887450086,-322.8916,0.00018,2]
[401012907,1767887450317,152.146269,0.00010656,2]
[401015747,1767887493503,125.62413493,0.00010527,2]
[401015748,1767887500586,-446.87981781,0.00010527,2]
[401015749,1767887502574,-325.26576385,0.00010527,2]
[401015751,1767887504645,-210.73445015,0.00010527,2]
[401015752,1767887506138,-252.70396908,0.00010527,2]
[401015753,1767887507663,-371.45578516,0.00010527,2]
[401015754,1767887511061,-208.50607902,0.00010527,2]
[401015755,1767887511086,-163.8389322,0.00010527,2]
[401015757,1767887526675,-3.3730678,0.00010527,2]
[401015758,1767887527977,-242.91971239,0.00010634,2]
[401015760,1767887727676,-182.0,0.00022716,120]
[401015761,1767887727734,-182.0,0.00023052,120]
[401015762,1767887727794,-182.0,0.00023852,120]
[401015763,1767887727850,-182.0,0.00024205,120]
[401015764,1767887727907,-150.0,0.00024812,120]
[401015765,1767887727967,-580.457384,0.00025599,120]
[401015766,1767887728021,-560.508346,0.00025599,120]
[401015767,1767887728080,-150.0,0.00026723,120]
[401015768,1767887728141,-500.0,0.000274,120]
[401015769,1767887728196,-500.0,0.00028,120]
[401015770,1767887728250,-393.0,0.000284,120]
[401015771,1767887728618,-185.10528216,0.00028767,120]
[401015772,1767887728671,-170.86,0.0002878,120]
[401015773,1767887728731,-500.0,0.0003,120]
[401015774,1767887728786,-200.0,0.0003,120]
[401015775,1767887728839,-163.00957925,0.0003,120]
[401015776,1767887728898,-500.0,0.000314,120]
[401015777,1767887728951,-2624.78260111,0.000315,120]